Cogmind - Beta 14 @@@ ROGUE MODE // 2024.08.10 @ 20:38:20 Player: f3-rnm Result: Self-destructed Performance ------------- Evolutions (1) 500 Regions Visited (5) 1000 Robots Destroyed (61) 305 Value Destroyed (1478) 1478 Prototype IDs (25) 500 Alien Tech Used (0) 0 Bonus (300) 300 TOTAL SCORE: 4083 Bonus ------- Aligned with FarCom 300 Cogmind --------- Core Integrity 111/400 Matter 179/300 Energy 265/265 System Corruption 0% Temperature Cool (0) Movement Treading (480) Ox4 Location -9/Exiles Parts ------- > --- POWER (1) -------- Improved Ion Engine > --- PROPULSION (3) --- Light Treads > --- UTILITY (2) ------ Huge Storage Unit > --- WEAPON (3) ------- Improved Assault Rifle Improved Assault Rifle > --- INVENTORY (25) --- Aluminum Leg Aluminum Leg Compact Wheel Heat Sink High-capacity Storage Unit Faulty Experimental Sensor Array Core Shielding Hardened Light Armor Plating Improved Light Armor Plating Tractor Beam Beam Cannon Autogun Autogun Rocket Launcher Peak State ------------ > --- POWER ------------ Heavy Ion Engine > --- PROPULSION ------- Light Treads Light Treads Compact Wheel > --- UTILITY ---------- Huge Storage Unit Core Shielding > --- WEAPON ----------- Autogun Autogun Autogun > --- INVENTORY -------- Improved Ion Engine Fission Core Light Fission Core Light Fission Core Light Treads Light Treads Aluminum Leg Aluminum Leg Compact Wheel Heat Sink High-capacity Storage Unit Compact Matter Pod Experimental Sensor Array Core Shielding Hardened Light Armor Plating Improved Light Armor Plating Tractor Beam Beam Cannon Autogun Autogun Autogun Autogun Improved Assault Rifle Improved Assault Rifle Rocket Launcher [Rating: 20] Favorites ----------- Power Heavy Ion Engine Engine Heavy Ion Engine Propulsion Light Treads Treads Light Treads Wheel Compact Wheel Utility Core Shielding Storage High-capacity Storage Unit Protection Core Shielding Weapon Autogun Energy Gun Medium Laser Energy Cannon Beam Cannon Ballistic Gun Autogun Ballistic Cannon Light Cannon Launcher Grenade Launcher Build | -11 -10 -10 -9 -9 -9 ------- Run | Yrd Mat Min Mat Min Exi Slots Evolved 2 | . . . 2 . . Power . | . . . . . . Propulsion 1 | . . . 1 . . Utility . | . . . . . . Weapon 1 | . . . 1 . . Parts Attached 41 | 6 4 . 19 3 9 Power 4 | 1 . . 2 . 1 Engine 4 | 1 . . 2 . 1 Core . | . . . . . . Reactor . | . . . . . . Propulsion 10 | 2 . . 6 . 2 Treads 8 | 2 . . 4 . 2 Leg . | . . . . . . Wheel 2 | . . . 2 . . Hover . | . . . . . . Flight . | . . . . . . Utility 5 | 1 2 . 2 . . Device . | . . . . . . Storage 3 | 1 1 . 1 . . Processor . | . . . . . . Hackware . | . . . . . . Protection 2 | . 1 . 1 . . Artifact . | . . . . . . Weapon 22 | 2 2 . 9 3 6 Energy Gun 1 | 1 . . . . . Energy Cannon 3 | . 1 . 2 . . Ballistic Gun 14 | 1 . . 6 2 5 Ballistic Cannon 1 | . 1 . . . . Launcher 3 | . . . 1 1 1 Special Weapon . | . . . . . . Impact Weapon . | . . . . . . Slashing Weapon . | . . . . . . Piercing Weapon . | . . . . . . Special Melee Weapon . | . . . . . . Unidentified Prototypes 2 | . . . 2 . . Parts Lost 21 | . 1 . 8 1 11 Power 2 | . . . 1 . 1 Propulsion 7 | . . . 3 . 4 Utility 2 | . 1 . . . 1 Weapon 10 | . . . 4 1 5 Highest Loss Streak 11 | . 1 . 3 1 11 To Critical Strikes 9 | . . . . . 9 Average Slot Usage (%) 91 | . 92 85 79 100 94 Engine 11 | . 14 14 7 11 11 Treads 21 | . 28 28 14 22 20 Wheel 6 | . . . 9 11 9 Storage 12 | . 14 14 11 11 11 Protection 8 | . 7 . 9 11 9 Energy Cannon 5 | . 12 14 5 . . Ballistic Gun 18 | . 4 . 20 32 31 Ballistic Cannon 3 | . 9 14 1 . . Peak Build Rating 20 | 6 7 7 19 19 20 Average Rating 12 | 4 6 7 11 18 18 On Entrance 9 | . 6 7 7 19 19 Naked Turns . | . . . . . . Heaviest Build 99 | 11 52 49 98 98 99 Greatest Support 40 | 40 40 40 40 16 20 Greatest Overweight (x) 16 | . 16 1 6 6 6 Average Overweight (x) 3 | . 1 1 2 5 5 Largest Inventory Capacity 25 | 8 20 20 25 25 25 Average Capacity 19 | 6 13 20 20 25 25 Most Carried 25 | 2 10 11 24 25 25 Average Carried 15 | 1 8 10 15 24 22 Final Capacity 25 | 8 20 20 25 25 25 Final Carried 24 | 2 10 11 24 24 14 Class Distribution -------------------- 51% | Mutant 48% | Tank Dominant Class ---------------- Mutant | -10/Materials Mutant | -10/Mines Tank | -9/Materials Tank | -9/Mines Tank | -9/Exiles Resources | -11 -10 -10 -9 -9 -9 ----------- Run | Yrd Mat Min Mat Min Exi Matter Collected 1824 | 213 239 . 486 620 266 Remotely . | . . . . . . Salvage Created 2354 | 21 522 . 1119 549 143 Parts 131 | 3 29 . 67 32 . Haulers Intercepted 4 | . 1 . 3 . . Recyclers Shooed 2 | . . . 2 . . Parts Field Recycled . | . . . . . . Retrieved Matter . | . . . . . . Parts Self-Destructed . | . . . . . . Prevented . | . . . . . . Kills | -11 -10 -10 -9 -9 -9 ------- Run | Yrd Mat Min Mat Min Exi Combat Hostiles Destroyed 61 | . 13 . 20 23 5 Guns 21 | . 1 . 6 13 1 Cannons 22 | . 11 . 11 . . AOE 17 | . . . 3 10 4 Classes Destroyed 12 | 1 4 . 3 4 . Worker 3 | 1 . . . 2 . Builder 1 | . . . . 1 . Tunneler 1 | . . . . 1 . Hauler 4 | . 1 . 3 . . Recycler 5 | . 1 . 2 2 . Watcher 1 | . . . 1 . . Swarmer 13 | . 6 . . 7 . Grunt 24 | . 7 . 14 3 . Duelist 2 | . . . 2 . . Sentry 4 | . . . 4 . . Demolisher 2 | . . . . 2 . Assembled 15 | . . . . 11 4 Best Kill Streak 11 | 1 6 . 5 11 4 Combat Bots Only 11 | . 4 . 5 11 4 Max Kills in Single Turn 3 | 1 1 . 3 2 3 Gunslinging . | . . . . . . Exploded 3 | . . . 3 2 3 Melee . | . . . . . . Uniques/NPCs Destroyed 1 | . . . . . 1 8R-AWN (-9/Exiles) Combat | -11 -10 -10 -9 -9 -9 -------- Run | Yrd Mat Min Mat Min Exi Hostile Shots Fired 293 | . 68 . 100 47 78 Missed 71 | . 17 . 29 13 12 Damage Taken 2944 | . 467 . 912 450 1115 Core 349 | . 60 . 117 54 118 Absorbed by Shields . | . . . . . . Redirected to Shielding 43 | . . . 11 10 22 Regen/Repaired (Parts) 121 | . . . 121 . . Core Remaining (%) 88 | 100 . 76 . . . Volleys Fired 176 | 5 41 . 61 38 31 Largest 3 | 2 2 . 3 3 3 Hottest 140 | 70 95 . 140 76 69 Shots Fired 408 | 10 69 . 145 103 81 Gun 293 | 10 13 . 97 96 77 Cannon 103 | . 56 . 47 . . Launcher 12 | . . . 1 7 4 Special . | . . . . . . Kinetic 323 | 5 42 . 103 96 77 Thermal 73 | 5 27 . 41 . . Explosive 12 | . . . 1 7 4 Electromagnetic . | . . . . . . Robot Hit Streak 24 | 3 13 . 7 10 24 Robot Miss Streak 4 | 1 4 . 4 2 1 Penetration Max . | . . . . . . Secondary Targets 4 | . . . 1 3 . Max Gunslinging Chain 1 | . . . 1 1 . Shots Hit Robots 265 | 7 42 . 89 60 67 Core Hits 137 | 1 19 . 44 50 23 Critical Kills 2 | . 1 . . 1 . Critical Parts Destroyed 1 | . . . . 1 . Critical Strikes 4 | . 1 . . 2 1 Meltdown 1 | . 1 . . . . Destroy 3 | . . . . 2 1 Melee Attacks . | . . . . . . Impact . | . . . . . . Slashing . | . . . . . . Piercing . | . . . . . . Sneak Attacks . | . . . . . . Combat Hostiles . | . . . . . . Follow-up Attacks . | . . . . . . Damage Inflicted 4985 | 69 684 . 1540 1493 1199 Guns 2815 | 69 74 . 855 829 988 Cannons 1171 | . 610 . 561 . . Explosions 980 | . . . 124 645 211 Melee . | . . . . . . Ramming 19 | . . . . 19 . Kinetic 3062 | 20 316 . 909 829 988 Thermal 924 | 49 368 . 507 . . Explosive 980 | . . . 124 645 211 Electromagnetic . | . . . . . . Impact . | . . . . . . Slashing . | . . . . . . Piercing . | . . . . . . Highest Corruption 2 | . 2 2 . . . Average Corruption 2 | . 2 2 . . . Corruption Purged . | . . . . . . Corruption Blocked . | . . . . . . Effects 21 | . 21 . . . . Message Errors 3 | . 3 . . . . Matter Fused 8 | . 8 . . . . Heat Flow Errors 2 | . 2 . . . . Energy Discharges 1 | . 1 . . . . Data Loss (minor) 5 | . 5 . . . . Data Loss (major) 1 | . 1 . . . . Misfires 1 | . 1 . . . . Overload Shots . | . . . . . . Overflow Damage 25 | . 5 . . 20 . Projectiles 5 | . 5 . . . . Explosions 20 | . . . . 20 . Melee . | . . . . . . Knockbacks 5 | . 4 . 1 . . Impact . | . . . . . . Kinetic 5 | . 4 . 1 . . Secondary . | . . . . . . Self-Inflicted Damage 117 | . . . 18 95 4 Shots 5 | . . . 1 3 1 Rammed 1 | . . . . 1 . Targets Rammed 1 | . . . . 1 . Kicked . | . . . . . . Crushed . | . . . . . . Highest Temperature 467 | 80 467 . 207 162 56 Average Temperature 69 | 32 120 . 52 46 23 Received Heat Transfer 678 | . 90 . 423 165 . Effects 3 | . 3 . . . . Shutdowns 1 | . 1 . . . . Matter Decay 2 | . 2 . . . . Siege Activations . | . . . . . . Robots Corrupted . | . . . . . . Combat Hostiles . | . . . . . . Parts Fried 1 | . . . . 1 . Impact Corruptions . | . . . . . . Robots Melted 1 | . 1 . . . . Combat Hostiles 1 | . 1 . . . . Parts Melted 1 | . 1 . . . . Heat Transferred 1998 | 148 777 . 1073 . . Parts Sabotaged . | . . . . . . Parts Stolen . | . . . . . . Parts Stripped . | . . . . . . Power Chain Reactions . | . . . . . . Alert | -11 -10 -10 -9 -9 -9 ------- Run | Yrd Mat Min Mat Min Exi Peak Influence 358 | 5 288 33 322 358 . Initial 109 | . 3 33 12 109 . Average 137 | . 105 33 158 200 . Maximum Alert Level 1 | . 1 . 1 1 . Low Security (%) 77 | 100 95 100 73 46 . Level 1 22 | . 4 . 26 53 . Level 2 . | . . . . . . Level 3 . | . . . . . . Level 4 . | . . . . . . Level 5 . | . . . . . . High Security . | . . . . . . Max Security . | . . . . . . Squads Dispatched 4 | . 1 . 3 . . Investigation 1 | . . . 1 . . Extermination . | . . . . . . Reinforcement 3 | . 1 . 2 . . Assault . | . . . . . . Garrison . | . . . . . . Intercept . | . . . . . . Searches Triggered . | . . . . . . Construction Impeded . | . . . . . . Haulers Reinforced . | . . . . . . Active Scanning Responses . | . . . . . . Cargo Convoy Interrupts . | . . . . . . Stealth | -11 -10 -10 -9 -9 -9 --------- Run | Yrd Mat Min Mat Min Exi Distress Signals . | . . . . . . Communications Jammed . | . . . . . . Distress Signals . | . . . . . . Times Spotted 82 | . 26 . 25 24 7 Peak Tracking Total 9 | . 6 . 5 7 9 Tactical Retreats 2 | . 1 . . 1 . Traps | -11 -10 -10 -9 -9 -9 ------- Run | Yrd Mat Min Mat Min Exi Traps Triggered 1 | . 1 . . . . Indirectly . | . . . . . . Trap Hack Attempts . | . . . . . . Triggered . | . . . . . . Disarmed . | . . . . . . Reprogrammed . | . . . . . . Reused . | . . . . . . Traps Extracted . | . . . . . . Installed . | . . . . . . Triggered . | . . . . . . Machines | -11 -10 -10 -9 -9 -9 ---------- Run | Yrd Mat Min Mat Min Exi Machines Disabled 7 | . 1 . 2 . 4 Max in Single Turn 1 | . 1 . 1 . 1 Machines Repaired . | . . . . . . Machines Dismantled . | . . . . . . Machines Sabotaged . | . . . . . . Overloaded Fab Kills . | . . . . . . Hacking | -11 -10 -10 -9 -9 -9 --------- Run | Yrd Mat Min Mat Min Exi Machines Accessed 9 | . 5 . 3 . 1 Terminals 7 | . 5 . 2 . . Fabricators . | . . . . . . Repair Stations 1 | . . . 1 . . Recycling Units . | . . . . . . Scanalyzers . | . . . . . . Garrison Access . | . . . . . . Total Hacks 11 | . 5 . 5 . 1 Successful 9 | . 5 . 3 . 1 Failed 2 | . . . 2 . . Catastrophic 1 | . . . 1 . . Database Lockouts . | . . . . . . Manual 9 | . 6 . 2 . 1 Terminals 8 | . 5 . 3 . . Fabricators . | . . . . . . Repair Stations 2 | . . . 2 . . Recycling Units . | . . . . . . Scanalyzers . | . . . . . . Garrison Access . | . . . . . . Terminal Hacks 2 | . . . 1 . 1 Branch Access Points 1 | . . . 1 . . Derelict Proto ID Bank 1 | . . . . . 1 Fabricator Hacks . | . . . . . . Repair Station Hacks 2 | . . . 2 . . Scan Component 1 | . . . 1 . . Repair 1 | . . . 1 . . Recycling Unit Hacks . | . . . . . . Scanalyzer . | . . . . . . Garrison Access Hacks . | . . . . . . Unauthorized Hacks 5 | . 5 . . . . Terminals 5 | . 5 . . . . Skim 5 | . 5 . . . . Fabricators . | . . . . . . Repair Stations . | . . . . . . Recycling Units . | . . . . . . Scanalyzers . | . . . . . . Garrison Access . | . . . . . . Data Cores Recovered . | . . . . . . Used . | . . . . . . Hacking Detections 4 | . 1 . 3 . . Full Trace Events 1 | . . . 1 . . Feedback Events . | . . . . . . Feedback Blocked . | . . . . . . Robot Schematics Acquired . | . . . . . . Robots Built . | . . . . . . Authchips . | . . . . . . Time . | . . . . . . Total Robot Build Rating . | . . . . . . Part Schematics Acquired . | . . . . . . Parts Built . | . . . . . . Authchips . | . . . . . . Time . | . . . . . . Total Part Build Rating . | . . . . . . Parts Repaired 1 | . . . 1 . . Time 26 | . . . 26 . . Parts Recycled . | . . . . . . Recycled Matter . | . . . . . . Retrieved Matter . | . . . . . . Retrieved Components . | . . . . . . Parts Scanalyzed . | . . . . . . Part Schematics Acquired . | . . . . . . Parts Damaged . | . . . . . . Bothacking | -11 -10 -10 -9 -9 -9 ------------ Run | Yrd Mat Min Mat Min Exi Used RIF Installer . | . . . . . . Robots Hacked . | . . . . . . Non-combat . | . . . . . . Combat . | . . . . . . Robot Hacks Applied . | . . . . . . Relay Couplers Released . | . . . . . . Fabnet Peak Effective % . | . . . . . . Robots Rewired . | . . . . . . Allies Hacked . | . . . . . . Hacks Repelled . | . . . . . . Allies | -11 -10 -10 -9 -9 -9 -------- Run | Yrd Mat Min Mat Min Exi Total Allies 1 | . . . . 1 . Largest Group 1 | . . . . 1 1 Highest-Rated Group 31 | . . . . 31 31 Highest-Rated Ally 31 | . . . . 31 31 Total Orders . | . . . . . . Ally Attacks . | . . . . . . Total Damage . | . . . . . . Kills . | . . . . . . Allies Corrupted . | . . . . . . Allies Melted . | . . . . . . Intel | -11 -10 -10 -9 -9 -9 ------- Run | Yrd Mat Min Mat Min Exi Robot Analysis Total . | . . . . . . Derelict Logs Recovered 1 | . . . . 1 . Drone Launches . | . . . . . . Drone Recoveries . | . . . . . . Exploration | -11 -10 -10 -9 -9 -9 ------------- Run | Yrd Mat Min Mat Min Exi Turns Passed 4181 | 105 1368 131 987 817 773 Spaces Moved 1772 | 58 534 55 464 344 317 Core 52 | 11 41 . . . . Treads 705 | 47 493 55 99 . 11 Legs . | . . . . . . Wheels 1015 | . . . 365 344 306 Hover . | . . . . . . Flight . | . . . . . . Fastest Speed 50 | 50 160 240 105 175 190 Average Speed 195 | 139 229 240 158 189 200 Slowest Speed 850 | 160 850 240 320 190 480 Overloaded Moves . | . . . . . . Propulsion Burnouts . | . . . . . . Robots Hopped . | . . . . . . Cave-ins Triggered . | . . . . . . Exploration Rate (%) 45 | 7 85 25 46 50 59 Regions Visited 5 Branch Regions 3 Pre-discovered Areas 2 | . 1 . . 1 . Known Exits Taken 1 | . . . 1 . . Unknown Exits Taken 4 | 1 1 1 . 1 . Scrap Searched . | . . . . . . Spaces Dug . | . . . . . . Terrain Destroyed 72 | . . . 8 40 24 Melee . | . . . . . . Projectile . | . . . . . . AOE 72 | . . . 8 40 24 Terrain Rammed . | . . . . . . Walls Destroyed . | . . . . . . Machines Disabled . | . . . . . . Actions | -11 -10 -10 -9 -9 -9 --------- Run | Yrd Mat Min Mat Min Exi Total 2210 | 70 621 55 611 449 404 Wait 164 | . 29 . 38 59 38 Move 1767 | 57 533 54 463 343 317 Hop . | . . . . . . Pick Up 43 | 2 10 1 24 3 3 Fast Attach 13 | 6 2 . 5 . . Attach 18 | . 1 . 9 1 7 Detach 1 | . . . 1 . . Swap 10 | . 1 . 5 2 2 Drop 17 | . 4 . 5 2 6 Fire 176 | 5 41 . 61 38 31 Melee . | . . . . . . Ram 1 | . . . . 1 . Kick . | . . . . . . Crush . | . . . . . . Escape Stasis . | . . . . . . Rewire . | . . . . . . Trap . | . . . . . . Miscellaneous . | . . . . . . Route ------- -11/Scrapyard -10/Materials (discovered 4 exits: *Mat x2 / [*Min x2]) -10/Mines -9/Materials (discovered 3 exits: [*Mat x2] / *Min) -9/Mines (discovered 3 exits: [*Mat] / *Exi / [*Zio]) -9/Exiles (discovered 1 exit: [*Min]) History --------- Turn | Location | Event 5 | -11/Scrapyard | Discovered new exit (range 15) 106 | -11/Scrapyard | Entered Materials 228 | -10/Materials | Discovered new exit (range 5) 304 | -10/Materials | Build established: Mutant 306 | -10/Materials | Discovered new exit (range 13) 730 | -10/Materials | Discovered new exit (range 3) 871 | -10/Materials | Discovered new exit (range 12) 1104 | -10/Materials | Learned location of Mines (-10) 1226 | -10/Materials | Learned Storage trap positions 1350 | -10/Materials | Learned Storage trap positions 1405 | -10/Materials | Learned Storage emergency access door positions 1474 | -10/Materials | Entered Mines 1539 | -10/Mines | Found a damaged Exp. Sensor Array with a note attached 1544 | -10/Mines | Found Prototype Device 1593 | -10/Mines | Discovered new exit (range 5) 1605 | -10/Mines | Entered Materials 1605 | -9/Materials | Evolved 2 slots: Propulsion x1, Weapon x1 1667 | -9/Materials | Repaired Lgt. Treads 1751 | -9/Materials | Lost 3 parts (1p2w) 1977 | -9/Materials | Lost 3 parts (2n1w) 2010 | -9/Materials | Discovered new exit (range 11) 2355 | -9/Materials | Discovered new exit (range 10) 2365 | -9/Materials | Build established: Tank 2462 | -9/Materials | Identified exit to Mines 2592 | -9/Materials | Entered Mines 2593 | -9/Mines | Assembled infested the area 2598 | -9/Mines | Assisted by a Guerilla fighting off Assembled 2672 | -9/Mines | Destroyed 11 combat bots 2786 | -9/Mines | Received a Rocket Launcher from a helpful Derelict 2894 | -9/Mines | A Derelict revealed a hidden shortcut to a safe place 3319 | -9/Mines | Discovered new exit (range 4) 3349 | -9/Mines | Received a Mining Laser from a helpful Derelict 3399 | -9/Mines | Deemed a non-threat by the Exiles lab entrance 3401 | -9/Mines | Discovered new exit (range 5) 3409 | -9/Mines | Entered Exiles 3409 | -9/Exiles | Accompanied by 1 ally 3442 | -9/Exiles | Discovered new exit (range 15) 3459 | -9/Exiles | Met 8R-AWN 3487 | -9/Exiles | Met EX-HEX 3546 | -9/Exiles | Met EX-BIN 3569 | -9/Exiles | Aligned with FarCom system 3571 | -9/Exiles | Given EX-Vault access code 3615 | -9/Exiles | Opened EX-Vault 3658 | -9/Exiles | Warned to stay clear of 0b10 Research branches 3921 | -9/Exiles | Met EX-DEC 3958 | -9/Exiles | Attacked by the Exiles 4061 | -9/Exiles | Core integrity fell below 50% 4126 | -9/Exiles | Destroyed 8R-AWN 4154 | -9/Exiles | Lost 11 parts (1p4n1u5w) 4182 | -9/Exiles | Self-destructed Last Messages --------------- 04082_ Penetrated by HV Slug. 04091_ The unstable cave ceiling collapses. 04091_ Penetrated by HV Slug. 04091_ Com. Wheel destroyed. 04093_ Penetrated by HV Slug. 04094_ Dropped Com. Matter Pod. 04095_ Extracted 150 matter. 04096_ Penetrated by HV Slug. 04096_ Critical hit (Destroy). 04096_ Autogun destroyed. 04096_ Penetrated by HV Slug. 04106_ Core Shielding destroyed. 04110_ Penetrated by HV Slug. 04110_ Critical hit (Destroy). 04110_ Autogun destroyed. 04114_ Penetrated by HV Slug. 04123_ Critical hit (Destroy). 04123_ Autogun destroyed. 04126_ 8R-AWN destroyed. 04129_ Acquired 116 matter. Map ----- +----------------------------------------------------+ | ?????????????????????????????????????????????????? | | ?????????????????????????????????????????????????? | | ?????????????????????????????????????????????????? | | ?????????????????????????????????????????????????? | | ?????????????????????????????????????????????????? | | ?????????????????????????????????????????????????? | | ?????????????????????????????????????????????????? | | ?????????????????????????????????????????????????? | | ?????????????????????????????????????????????????? | | ?????????????????????????????????????????????????? | | ?????????????????????????????????????????????????? | | ?????????????????????????????????????????????????? | | ?????????????????????????????????????????????????? | | ?????????????????????????????????????????????????? | | ????????? ???????????????????????????????????????? | | ????????? ?????????????????????????????????????? | | ????????# ??????????????#######???????????????? | | ????????# ######???????#!!! "#???????????????? | | ????????# #""#??????# "#???????????????? | | ?????????# ??????# "#???????????????? | | ??????????#" ##???## ""#?????????????#?? | | ??????????"" #####" ""#???????????? "" | | ????????????# ##" ""#????????????" "" | | ?????????????# #"" #??????????????" | | ?????????????#"## #?????????????"" | | ????????????????#### @ #####?????????"" | | ???????????????????### * ##???????? " | | ?????????????########" # ????????" " | | ?????????????# !!""" " ## ????????# # | | ?????????????#! # ##???### # | | ?????????????#! "#####X# # | | ?????????????#! !;### | | ?????????????# !""""""#;# #?#"# | | ?????????????########## ## ##### | | ??????????????????????# #?##???## | | ??????????????????????# #???????? ## | | ??????????????????????# #?????????### | | ??????????????????????# #???????????## | | ??????????????????????# #????????????## | | ??????????????????????# #?????????????#"" | | ??????????????????????# ??????????????#" | | ??????????????????????? ??????????????"" | | ??????????????????????? ??????????????""" | | ??????????????????????? ??????????????"" | | ??????????????????????? ??????????????"" | | ??????????????????????? ??????????????" | | ??????????????????????? ??????????????"" | | ??????????????????????????????????????? | | ????????????????????????????????????????? | | ??????????????????????????????????????????? | +----------------------------------------------------+ Best States ------------- Heat Dissipation 28 Energy Generation 14 Energy Capacity 280 Matter Stores 300 Matter Capacity 300 Sight Range 16 Terrain Scan Density 10 Armor Coverage 150 Core Shielding 20 Evasion (%) 40 Recoil Reduction 2 Item Schematics ----------------- None Robot Schematics ------------------ None Fabricated ------------ Nothing Alien Tech Used ----------------- None Achievements -------------- None Challenges ------------ None Game ------ Seed MagneticPotentialExtractor Manual? 0 Play Time 00:21:30 Cumulative 222.3 hours Start 2024.08.10 @ 20:16:41 End 2024.08.10 @ 20:38:20 Sessions 1 Manual Loads 0 Difficulty Rogue Special Mode None Game No. 233 Rogue 197 Adventurer 36 Explorer 0 Win Type - Total 10 Types 3/0/7/0/0/0/0/0/0 Lore% 59 Gallery% 80 Achievement% 71 Wizard Run 0 Options --------- Layout 0 ASCII 0 Keyboard 0 Movement Mouse Keybinds 0 Fullscreen 1 Font 18/SmallcapsGlow Map View 76x50 Zoom Use 0% Tactical HUD 1 Map Filters NONE Filters NONE Steam 1 RUN: 59f82e44-827b-4334-87d4-32583544efbc